Cogmind - Beta 17 @@@ ROGUE MODE // 2026.07.09 @ 19:25:11 Player: Mechanikum Result: Self-destructed Performance ------------- Evolutions (3) 1500 Regions Visited (5) 1000 Robots Destroyed (22) 110 Value Destroyed (558) 558 Prototype IDs (2) 40 Alien Tech Used (0) 0 Bonus (0) 0 TOTAL SCORE: 3208 Bonus ------- None Cogmind --------- Core Integrity 695/700 Matter 0/300 Energy 280/280 System Corruption 0% Temperature Cool (6) Movement Flying (105) Ox1 Location -7/Factory Parts ------- > --- POWER (2) -------- Cooled Ion Engine > --- PROPULSION (5) --- Airjet Improved Flight Unit Improved Flight Unit Cesium-ion Thruster > --- UTILITY (3) ------ Small Storage Unit Improved Terrain Scanner Targeting Computer > --- WEAPON (3) ------- Light Assault Rifle Heavy Assault Rifle Improved Light Cannon > --- INVENTORY (8) ---- Light Ion Engine Improved Deuterium Engine Myomer Leg Myomer Leg Airjet Airjet Core Analyzer Reaction Control System Peak State ------------ > --- POWER ------------ Cooled Ion Engine > --- PROPULSION ------- Airjet Airjet Airjet Improved Flight Unit Cesium-ion Thruster > --- UTILITY ---------- Small Storage Unit Improved Terrain Scanner Targeting Computer > --- WEAPON ----------- Light Assault Rifle Heavy Assault Rifle Improved Light Cannon > --- INVENTORY -------- Light Ion Engine Improved Deuterium Engine Improved Flight Unit Improved Flight Unit Core Analyzer Reaction Control System Utility Shielding [Rating: 29] Favorites ----------- Power Cooled Ion Engine Engine Cooled Ion Engine Propulsion Airjet Wheel Wheel Hover Unit Airjet Flight Unit Flight Unit Utility Targeting Computer Device Improved Terrain Scanner Storage Small Storage Unit Processor Targeting Computer Protection Light Armor Plating Weapon Light Assault Rifle Ballistic Gun Light Assault Rifle Ballistic Cannon Improved Light Cannon Build | -11 -10 -9 -9 -8 -7 ------- Run | Yrd Mat Mat Min Mat Fac Slots Evolved 6 | . . 2 . 2 2 Power 1 | . . . . . 1 Propulsion 3 | . . 1 . 1 1 Utility 1 | . . 1 . . . Weapon 1 | . . . . 1 . Parts Attached 41 | 6 11 17 1 3 3 Power 8 | 1 2 3 . . 2 Engine 8 | 1 2 3 . . 2 Core . | . . . . . . Reactor . | . . . . . . Propulsion 17 | 2 5 8 . 1 1 Treads . | . . . . . . Leg . | . . . . . . Wheel 2 | 2 . . . . . Hover 3 | . . 3 . . . Flight 12 | . 5 5 . 1 1 Utility 8 | 1 3 3 . 1 . Device 3 | . . 2 . 1 . Storage 2 | 1 1 . . . . Processor 1 | . 1 . . . . Hackware . | . . . . . . Protection 2 | . 1 1 . . . Artifact . | . . . . . . Weapon 8 | 2 1 3 1 1 . Energy Gun . | . . . . . . Energy Cannon . | . . . . . . Ballistic Gun 7 | 2 1 3 . 1 . Ballistic Cannon 1 | . . . 1 . . Launcher . | . . . . . . Special Weapon . | . . . . . . Impact Weapon . | . . . . . . Slashing Weapon . | . . . . . . Piercing Weapon . | . . . . . . Special Melee Weapon . | . . . . . . Unidentified Prototypes 2 | . . 2 . . . Parts Lost 13 | . 5 7 . 1 . Power 3 | . 1 2 . . . Propulsion 7 | . 2 4 . 1 . Utility 1 | . 1 . . . . Weapon 2 | . 1 1 . . . Highest Loss Streak 4 | . 3 4 . 1 . To Critical Strikes . | . . . . . . Average Backups 5 | . 4 4 7 6 7 Power 1 | . 1 1 1 1 1 Propulsion 2 | . 1 1 3 3 2 Utility 1 | . . 1 2 2 2 Weapon . | . . . 1 . . Tool/Special . | . . . . . . Unused Backups 3 | . . . . 1 2 Power . | . . . . . . Propulsion . | . . . . . . Utility 3 | . . . . 1 2 Weapon . | . . . . . . Tool/Special . | . . . . . . Average Slot Usage (%) 84 | . 78 87 100 90 82 Engine 11 | . 13 10 11 9 7 Wheel 2 | . 2 7 . . . Hover 10 | . . 4 33 27 13 Flight 13 | . 18 17 . 1 15 Device 4 | . . 5 11 9 7 Storage 4 | . 1 3 11 9 7 Processor 8 | . 8 11 11 9 7 Protection 2 | . 4 4 . . . Ballistic Gun 21 | . 27 20 12 16 15 Ballistic Cannon 3 | . . . 9 9 7 Peak Build Rating 29 | 6 7 20 21 24 29 Average Rating 14 | 4 5 12 20 23 26 On Entrance 12 | . 6 6 20 21 23 Avg Prop Armor Cover (%) 4 | . 4 3 . 2 4 Naked Turns . | . . . . . . Heaviest Build 22 | 12 12 16 19 22 22 Greatest Support 26 | 26 26 26 24 24 24 Greatest Overweight (x) 5 | . 2 1 . 5 1 Average Overweight (x) . | . . . . . . Largest Inventory Capacity 15 | 8 15 8 8 8 8 Average Capacity 6 | 7 5 6 8 8 8 Most Carried 8 | 2 5 8 8 8 8 Average Carried 5 | 1 4 4 8 7 7 Final Capacity 8 | 8 5 8 8 8 8 Final Carried 8 | 2 5 8 8 7 8 Class Distribution -------------------- 69% | Mutant 28% | Gunner Dominant Class ---------------- Mutant | -10/Materials Mutant | -9/Materials Mutant | -9/Mines Gunner | -8/Materials Gunner | -7/Factory Resources | -11 -10 -9 -9 -8 -7 ----------- Run | Yrd Mat Mat Min Mat Fac Matter Collected 692 | 260 222 204 . 6 . Remotely . | . . . . . . Salvage Created 692 | . 414 270 . 8 . Parts 44 | . 18 23 . 3 . Haulers Intercepted 1 | . . 1 . . . Recyclers Shooed . | . . . . . . Parts Field Recycled . | . . . . . . Retrieved Matter . | . . . . . . Parts Self-Destructed . | . . . . . . Prevented . | . . . . . . Parts Restored . | . . . . . . Kills | -11 -10 -9 -9 -8 -7 ------- Run | Yrd Mat Mat Min Mat Fac Combat Hostiles Destroyed 19 | . 9 7 . 3 . Guns 18 | . 9 7 . 2 . Cannons 1 | . . . . 1 . Classes Destroyed 5 | . 2 3 . . . Hauler 1 | . . 1 . . . Watcher 2 | . 2 . . . . Swarmer 7 | . . 4 . 3 . Grunt 9 | . 9 . . . . Sentry 3 | . . 3 . . . Best Kill Streak 6 | . 2 6 . 3 . Combat Bots Only 5 | . 2 5 . 3 . Max Kills in Single Turn 1 | . 1 1 . 1 . Gunslinging . | . . . . . . Exploded . | . . . . . . Melee . | . . . . . . Uniques/NPCs Destroyed . | . . . . . . Combat | -11 -10 -9 -9 -8 -7 -------- Run | Yrd Mat Mat Min Mat Fac Hostile Shots Fired 206 | . 84 87 5 21 9 Missed 86 | . 39 34 3 5 5 Hits 120 | . 45 53 2 16 4 Projectile 120 | . 45 53 2 16 4 Critical Strikes 2 | . . 2 . . . Damage Taken 1367 | . 512 665 17 146 27 Core 371 | . 138 212 . 16 5 Absorbed by Shields . | . . . . . . Redirected to Shielding 9 | . . 9 . . . Core Remaining (%) 72 | 100 44 . 47 97 . Volleys Fired 115 | . 62 37 . 13 3 Largest 3 | . 2 2 . 3 3 Hottest 76 | . 40 43 . 76 76 Shots Fired 227 | . 117 63 . 38 9 Gun 211 | . 117 63 . 25 6 Cannon 16 | . . . . 13 3 Launcher . | . . . . . . Special . | . . . . . . Kinetic 227 | . 117 63 . 38 9 Thermal . | . . . . . . Explosive . | . . . . . . Electromagnetic . | . . . . . . Robot Hit Streak 8 | . 6 8 . 4 1 Robot Miss Streak 7 | . 7 3 . 3 6 Penetration Max . | . . . . . . Secondary Targets 3 | . 1 2 . . . Max Gunslinging Chain 1 | . 1 1 . . . Shots Hit Robots 128 | . 67 40 . 19 2 Core Hits 53 | . 29 18 . 4 2 Critical Kills . | . . . . . . Critical Parts Destroyed . | . . . . . . Critical Strikes 1 | . . . . 1 . Blast 1 | . . . . 1 . Melee Attacks . | . . . . . . Impact . | . . . . . . Slashing . | . . . . . . Piercing . | . . . . . . Sneak Attacks . | . . . . . . Combat Hostiles . | . . . . . . Follow-up Attacks . | . . . . . . Damage Inflicted 1252 | . 532 396 . 301 23 Guns 1078 | . 532 396 . 127 23 Cannons 174 | . . . . 174 . Explosions . | . . . . . . Melee . | . . . . . . Ramming . | . . . . . . Kinetic 1252 | . 532 396 . 301 23 Thermal . | . . . . . . Explosive . | . . . . . . Electromagnetic . | . . . . . . Impact . | . . . . . . Slashing . | . . . . . . Piercing . | . . . . . . Highest Corruption . | . . . . . . Average Corruption . | . . . . . . Corruption Purged . | . . . . . . Corruption Blocked . | . . . . . . Overload Shots . | . . . . . . Overflow Damage . | . . . . . . Projectiles . | . . . . . . Explosions . | . . . . . . Melee . | . . . . . . Knockbacks 5 | . . . . 5 . Impact . | . . . . . . Kinetic 4 | . . . . 4 . Secondary 1 | . . . . 1 . Self-Inflicted Damage . | . . . . . . Shots . | . . . . . . Rammed . | . . . . . . Targets Rammed . | . . . . . . Kicked . | . . . . . . Crushed . | . . . . . . Highest Temperature 72 | . 72 16 . 5 . Average Temperature 23 | . 25 4 . 4 . Received Heat Transfer 480 | . 270 195 . 9 6 Siege Activations . | . . . . . . Martial Activations . | . . . . . . Shielding Activations . | . . . . . . Robots Disrupted . | . . . . . . Combat Hostiles . | . . . . . . Robots Corrupted . | . . . . . . Combat Hostiles . | . . . . . . Parts Fried . | . . . . . . Impact Corruptions . | . . . . . . Robots Melted . | . . . . . . Combat Hostiles . | . . . . . . Parts Melted . | . . . . . . Heat Transferred . | . . . . . . Parts Sabotaged . | . . . . . . Parts Stolen . | . . . . . . Parts Stripped . | . . . . . . Power Chain Reactions . | . . . . . . Alert | -11 -10 -9 -9 -8 -7 ------- Run | Yrd Mat Mat Min Mat Fac Maximum Alert Level . | . . . . . . Low Security (%) 100 | 100 100 100 100 100 100 Level 1 . | . . . . . . Level 2 . | . . . . . . Level 3 . | . . . . . . Level 4 . | . . . . . . Level 5 . | . . . . . . High Security . | . . . . . . Max Security . | . . . . . . Peak Influence 172 | . 67 172 55 122 18 Initial 55 | . . 11 55 . 18 Average 28 | . 19 57 25 57 1 Influence Increases 696 | . 251 307 . 133 5 Destroy 0b10 Robot/C 380 | . 180 140 . 60 . Destroy 0b10 Robot/NC 15 | . 10 5 . . . Destroy Leader 86 | . 34 42 . 10 . Successful Hack 17 | . 12 . . . 5 Destroy Structure 3 | . . . . 3 . Partial Spotted 45 | . 15 30 . . . Lose Combat Pursuer 150 | . . 90 . 60 . Influence Decreases 696 | . 223 193 142 90 48 Entered New Map 129 | . . 17 87 . 25 Time Decay 471 | . 183 130 55 80 23 Lost Part 96 | . 40 46 . 10 . Squads Dispatched 4 | . 3 1 . . . Investigation 1 | . 1 . . . . Extermination . | . . . . . . Reinforcement 3 | . 2 1 . . . Assault . | . . . . . . Garrison . | . . . . . . Intercept . | . . . . . . Searches Triggered . | . . . . . . Construction Impeded . | . . . . . . Haulers Reinforced . | . . . . . . Active Scanning Responses . | . . . . . . Cargo Convoy Interrupts . | . . . . . . Stealth | -11 -10 -9 -9 -8 -7 --------- Run | Yrd Mat Mat Min Mat Fac Distress Signals 4 | . 2 2 . . . Communications Jammed . | . . . . . . Distress Signals . | . . . . . . Times Spotted 67 | . 27 23 3 12 2 Peak Tracking Total 8 | . 8 8 4 5 1 Tactical Retreats 2 | . . 1 . 1 . Traps | -11 -10 -9 -9 -8 -7 ------- Run | Yrd Mat Mat Min Mat Fac Traps Triggered 1 | . . . . 1 . Indirectly . | . . . . . . Trap Hack Attempts . | . . . . . . Triggered . | . . . . . . Disarmed . | . . . . . . Reprogrammed . | . . . . . . Reused . | . . . . . . Traps Extracted . | . . . . . . Installed . | . . . . . . Triggered . | . . . . . . Machines | -11 -10 -9 -9 -8 -7 ---------- Run | Yrd Mat Mat Min Mat Fac Machines Disabled . | . . . . . . Max in Single Turn . | . . . . . . Machines Repaired . | . . . . . . Machines Dismantled . | . . . . . . Machines Sabotaged . | . . . . . . Overloaded Fab Kills . | . . . . . . Hacking | -11 -10 -9 -9 -8 -7 --------- Run | Yrd Mat Mat Min Mat Fac Machines Accessed 9 | . 5 . . . 4 Terminals 5 | . 3 . . . 2 Fabricators 1 | . . . . . 1 Repair Stations . | . . . . . . Recycling Units 2 | . 2 . . . . Scanalyzers 1 | . . . . . 1 Garrison Access . | . . . . . . Total Hacks 23 | . 15 . . . 8 Successful 11 | . 5 . . . 6 Failed 12 | . 10 . . . 2 Catastrophic 2 | . 1 . . . 1 Database Lockouts . | . . . . . . Manual . | . . . . . . Terminals 11 | . 8 . . . 3 Fabricators 2 | . . . . . 2 Repair Stations . | . . . . . . Recycling Units 7 | . 7 . . . . Scanalyzers 3 | . . . . . 3 Garrison Access . | . . . . . . Terminal Hacks 5 | . 4 . . . 1 Robot Analysis 1 | . 1 . . . . Alert Level 1 | . . . . . 1 Maintenance Status 1 | . 1 . . . . Patrol Status 1 | . 1 . . . . Transport Status 1 | . 1 . . . . Fabricator Hacks 2 | . . . . . 2 Network Status 1 | . . . . . 1 Build 1 | . . . . . 1 Repair Station Hacks . | . . . . . . Recycling Unit Hacks 1 | . 1 . . . . Report Inventory 1 | . 1 . . . . Scanalyzer 3 | . . . . . 3 Insert Component 1 | . . . . . 1 Analyze 1 | . . . . . 1 Retrieve Study 1 | . . . . . 1 Garrison Access Hacks . | . . . . . . Unauthorized Hacks . | . . . . . . Terminals . | . . . . . . Fabricators . | . . . . . . Repair Stations . | . . . . . . Recycling Units . | . . . . . . Scanalyzers . | . . . . . . Garrison Access . | . . . . . . Data Cores Recovered . | . . . . . . Used . | . . . . . . Hacking Detections 6 | . 3 . . . 3 Full Trace Events 1 | . 1 . . . . Feedback Events . | . . . . . . Feedback Blocked . | . . . . . . Robot Schematics Acquired . | . . . . . . Robots Built . | . . . . . . Authchips . | . . . . . . Time . | . . . . . . Total Robot Build Rating . | . . . . . . Part Schematics Acquired 1 | . . . . . 1 Parts Built 2 | . . . . . 2 Authchips . | . . . . . . Time 117 | . . . . . 117 Total Part Build Rating 14 | . . . . . 14 Part Studies Acquired 1 | . . . . . 1 Parts Repaired . | . . . . . . Time . | . . . . . . Parts Recycled . | . . . . . . Recycled Matter . | . . . . . . Retrieved Matter . | . . . . . . Retrieved Components . | . . . . . . Parts Scanalyzed 1 | . . . . . 1 Part Schematics Acquired 1 | . . . . . 1 Parts Damaged 1 | . . . . . 1 Bothacking | -11 -10 -9 -9 -8 -7 ------------ Run | Yrd Mat Mat Min Mat Fac Used RIF Installer . | . . . . . . Robots Hacked . | . . . . . . Non-combat . | . . . . . . Combat . | . . . . . . Robot Hacks Applied . | . . . . . . Relay Couplers Released . | . . . . . . Fabnet Peak Effective % . | . . . . . . Robots Rewired . | . . . . . . Allies Hacked . | . . . . . . Hacks Repelled . | . . . . . . Allies | -11 -10 -9 -9 -8 -7 -------- Run | Yrd Mat Mat Min Mat Fac Total Allies . | . . . . . . Largest Group . | . . . . . . Highest-Rated Group . | . . . . . . Highest-Rated Ally . | . . . . . . Total Orders . | . . . . . . Ally Attacks . | . . . . . . Total Damage . | . . . . . . Kills . | . . . . . . Allies Corrupted . | . . . . . . Allies Melted . | . . . . . . Intel | -11 -10 -9 -9 -8 -7 ------- Run | Yrd Mat Mat Min Mat Fac Active Infowar (turns) 689 | . . 41 140 235 273 Terrain 689 | . . 41 140 235 273 Robot Analysis Total 1 | . 1 . . . . Derelict Logs Recovered . | . . . . . . Drone Launches . | . . . . . . Drone Recoveries . | . . . . . . Exploration | -11 -10 -9 -9 -8 -7 ------------- Run | Yrd Mat Mat Min Mat Fac Turns Passed 1616 | 64 615 289 140 235 273 Spaces Moved 1979 | 61 664 332 253 353 316 Core 21 | 5 16 . . . . Treads . | . . . . . . Legs . | . . . . . . Wheels 167 | 56 61 50 . . . Hover 825 | . . 67 253 352 153 Flight 966 | . 587 215 . 1 163 Fastest Speed 34 | 50 37 34 52 52 52 Average Speed 60 | 88 62 47 52 53 78 Slowest Speed 440 | 100 200 125 52 440 105 Overloaded Moves . | . . . . . . Propulsion Burnouts . | . . . . . . Robots Hopped 5 | . 5 . . . . Potential Cave-ins . | . . . . . . Cave-ins Triggered . | . . . . . . Exploration Rate (%) 30 | 4 68 32 45 27 7 Regions Visited 5 Branch Regions 1 Pre-discovered Areas . | . . . . . . Known Exits Taken . | . . . . . . Unknown Exits Taken 5 | 1 1 1 1 1 . Scrap Searched 2 | . . . 2 . . Spaces Dug . | . . . . . . Terrain Destroyed . | . . . . . . Melee . | . . . . . . Projectile . | . . . . . . AOE . | . . . . . . Terrain Rammed . | . . . . . . Walls Destroyed . | . . . . . . Machines Disabled . | . . . . . . Actions | -11 -10 -9 -9 -8 -7 --------- Run | Yrd Mat Mat Min Mat Fac Total 2198 | 68 759 403 261 373 334 Wait 31 | . 20 4 6 1 . Move 1964 | 60 653 331 252 352 316 Hop 5 | . 5 . . . . Pick Up 14 | 2 3 4 1 2 2 Fast Attach 22 | 6 5 8 . 1 2 Attach 9 | . 2 3 . 1 3 Detach 6 | . 1 1 . . 4 Swap 21 | . 6 11 1 1 2 Drop 11 | . 2 4 1 2 2 Fire 115 | . 62 37 . 13 3 Melee . | . . . . . . Ram . | . . . . . . Kick . | . . . . . . Crush . | . . . . . . Escape Stasis . | . . . . . . Rewire . | . . . . . . Trap . | . . . . . . Miscellaneous . | . . . . . . Route ------- -11/Scrapyard -10/Materials (discovered 3 exits: [*Mat x2] / [*Min]) -9/Materials -9/Mines -8/Materials -7/Factory History --------- Turn | Location | Event 11 | -11/Scrapyard | Discovered new exit (range 15) 65 | -11/Scrapyard | Entered Materials 314 | -10/Materials | Build established: Mutant 368 | -10/Materials | Discovered new exit (range 15) 388 | -10/Materials | Lost 3 parts (1p1n1u) 442 | -10/Materials | Discovered new exit (range 15) 569 | -10/Materials | Core integrity fell below 50% 665 | -10/Materials | Derelicts attacked the area 674 | -10/Materials | Discovered new exit (range 16) 680 | -10/Materials | Entered another Materials area 680 | -9/Materials | Evolved 2 slots: Propulsion x1, Utility x1 765 | -9/Materials | Lost 4 parts (1p2n1w) 866 | -9/Materials | Lost 3 parts (1p2n) 909 | -9/Materials | Core integrity fell below 50% 962 | -9/Materials | Discovered new exit (range 13) 969 | -9/Materials | Entered Mines 1088 | -9/Mines | Discovered new exit (range 4) 1109 | -9/Mines | Entered Materials 1109 | -8/Materials | Evolved 2 slots: Propulsion x1, Weapon x1 1216 | -8/Materials | Discovered new exit (range 13) 1344 | -8/Materials | Entered Factory 1344 | -7/Factory | Evolved 2 slots: Power x1, Propulsion x1 1462 | -7/Factory | Build established: Gunner 1536 | -7/Factory | Fabricated Myomer Leg? 1617 | -7/Factory | Self-destructed Last Messages --------------- Ready to analyze. >>Scanalyze Scanning: Imp. Flight Unit... Schematic downloaded. Dropped Utility Shielding. Connecting with Scanalyzer... >>Study(Cesium-ion Thruster) Identified Cesium-ion Thruster... Downloading performance data... Effective improvements: +1 support Connecting with Terminal... >>Alert(Check) Current Alert Level: Low Security [Achievement: Just What I Needed] >> FABRICATOR: Completed Myomer Leg? K-01 Serf collects debris. Acquired Myomer Leg. Dropped Broken Imp. Flight Unit. Acquired Myomer Leg. Map ----- +----------------------------------------------------+ | ????? ##???????????????????????????????????????? | | ??? ??????????????????????????????????????? | | ??# ???????????????????????????????????????? | | ??# ??????#+####??????????????????????????? | | ??# #??????????????????????????? | | ??# #??????????????????????????? | | ??# T #??????????????????????????? | | ??+ """"""""" #??????????????????????????? | | ??# #??????????????????????????? | | ??# """"""""" #??????????????????????????? | | ??# #??????????????????????????? | | ??# === #??????????????????????????? | | ??# === +??????????????????????????? | | ??# == #??????????????????????????? | | ### #??????????????????????????? | | # #??????????????????????????? | | # ######### #? ????????????????????????? | | # # # #??????????????????????????? | | # # # ########???????????????????? | | # # + ## ##??????????????????? | | # # # ##" ???????????????????? | | + # # ##" #???????????????????? | | # # ?# ##" Y #?????#?????????????? | | # # ?# ##T == #???#???????????????? | | ### # ??# ##" =| #???????????????????? | | # # ??# ##"@= #?? ????????????????? | | # # ???# ##" #???????????????????? | | # # ???# ## #???? ??????????????? | | # # ????# ## #???""??????????????? | | # ####???## ## #?? """ ??????????? | | ####+#####??????# ## #? """ ?????????? | | #???? ?# ###+##### ????????? | | """" #??????# ^ !! ????????? | | """" # ?????+ != ????????? | | """" #??????# ! ????????? | | """" #??????# ! ????????? | | #??????# ! / ????????? | | #??????#########+##############?????????? | | #????? ?????# #????????#?????????? | | ##########?????????#?# !]] "" #??????????????????? | | ??????????? ?????????# !]]=F" #????????????#?????? | | ???????#???????????#?# ]]] " # ?????????????????? | | ?????????????????????# "" # ? ? ????????????? | | ?????????????????????# """ #????? ?????#?????? | | ???????????????????#?# """ #????? ????????????? | | ?????????????????????# """ [ #?#?###???#?#??????? | | ?????????????????????# #???# ????????????? | | ??????#?????#??##############+#???# #????????????? | | ???????????????# !## #??## #????????????? | | ???????#???????# ## #?### ###??????????? | +----------------------------------------------------+ Best States ------------- Heat Dissipation 38 Energy Generation 14 Energy Capacity 280 Matter Stores 300 Matter Capacity 300 Sight Range 16 Terrain Scan Range 16 Terrain Scan Density 10 Armor Coverage 150 Utility Shielding 33 Evasion (%) 63 Targeting Accuracy 5 Item Schematics ----------------- Imp. Flight Unit | -7/Factory | Scanalyzed Robot Schematics ------------------ None Fabricated ------------ Myomer Leg | x2 | -7/Factory | Preloaded Repaired ---------- Nothing Studied --------- Cesium-ion Thruster | -7/Factory | Hacked Alien Tech Used ----------------- None Achievements -------------- Just What I Needed Challenges ------------ None Game ------ Seed InterceptSmartbombCasing Manual? 0 Play Time 00:25:27 Cumulative 4.5 hours Start 2026.07.09 @ 18:59:34 End 2026.07.09 @ 19:25:11 Sessions 1 Manual Loads 0 Difficulty Rogue Special Mode None Game No. 12 Rogue 12 Adventurer 0 Explorer 0 Win Type - Total 0 Types 0/0/0/0/0/0/0/0/0/0 Lore% 11 Gallery% 10 Achievement% 12 Wizard Run 0 Options --------- Layout 1 ASCII 0 Keyboard 0 Movement Arrows Keybinds 0 Fullscreen 2 Font 36/X11 Map View 50x40 Zoom Use 0% Tactical HUD 0 Map Filters NONE Filters NONE Steam 1 RUN: 61865a56-efcd-474b-aa19-3a7724f6262c